Cogmind - Beta 9.3 @@@ ROGUE MODE // 2019.12.19 @ 08:51:07 // Winter2019/RPGLIKE Player: inSANE Result: Destroyed by Y-54 Guardian via exploding Fusion Modulator Performance ------------- Evolutions (3) 1500 Regions Visited (6) 1200 Robots Destroyed (17) 85 Value Destroyed (331) 331 Prototype IDs (1) 20 Alien Tech Used (0) 0 Bonus (-7) -7 TOTAL SCORE: 3129 Bonus ------- Follower Combat Kills 14 Friendly Fire -21 Cogmind --------- Core Integrity 0/900 Matter 236/300 Energy 236/240 System Corruption 0% Temperature Cool (14) Movement Flying (37) Location -7/Factory Parts ------- > --- POWER (1) -------- Nuclear Core > --- PROPULSION (2) --- Xenon Bombardment Thruster Xenon Bombardment Thruster > --- UTILITY (2) ------ Microactuators Microactuators > --- WEAPON (2) ------- Flail Flail > --- INVENTORY (0) ---- (None) Peak State ------------ > --- POWER ------------ Nuclear Core > --- PROPULSION ------- Xenon Bombardment Thruster Xenon Bombardment Thruster > --- UTILITY ---------- Microactuators Microactuators > --- WEAPON ----------- Flail Flail > --- INVENTORY -------- (None) [Rating: 23] Favorites ----------- Power Light Ion Engine Engine Light Ion Engine Power Core Nuclear Core Propulsion Wheel Treads Light Treads Wheel Wheel Flight Unit Xenon Bombardment Thruster Utility Heat Sink Device Heat Sink Storage Large Matter Pod Protection Light Armor Plating Weapon Assault Rifle Ballistic Gun Assault Rifle Impact Weapon Flail Build | -11 -10 -10 -10 -9 -8 -7 ------- Run | Scr Mat Min Exi Min Mat Fac Slots Evolved 3 | 3 . . . . . . Power . | . . . . . . . Propulsion 1 | 1 . . . . . . Utility 1 | 1 . . . . . . Weapon 1 | 1 . . . . . . Parts Attached 20 | 5 3 . . 1 5 6 Power 2 | 1 . . . . 1 . Engine 1 | 1 . . . . . . Core 1 | . . . . . 1 . Reactor . | . . . . . . . Propulsion 7 | 2 . . . . 3 2 Treads 2 | 1 . . . . 1 . Leg . | . . . . . . . Wheel 1 | 1 . . . . . . Hover . | . . . . . . . Flight 4 | . . . . . 2 2 Utility 6 | . 3 . . . 1 2 Device 3 | . 1 . . . . 2 Storage 1 | . 1 . . . . . Processor . | . . . . . . . Hackware . | . . . . . . . Protection 2 | . 1 . . . 1 . Artifact . | . . . . . . . Weapon 5 | 2 . . . 1 . 2 Energy Gun . | . . . . . . . Energy Cannon . | . . . . . . . Ballistic Gun 3 | 2 . . . 1 . . Ballistic Cannon . | . . . . . . . Launcher . | . . . . . . . Special Weapon . | . . . . . . . Impact Weapon 2 | . . . . . . 2 Slashing Weapon . | . . . . . . . Piercing Weapon . | . . . . . . . Special Melee Weapon . | . . . . . . . Unidentified Prototypes 1 | . . . . . . 1 Parts Lost . | . . . . . . . Power . | . . . . . . . Propulsion . | . . . . . . . Utility . | . . . . . . . Weapon . | . . . . . . . Highest Loss Streak . | . . . . . . . Average Slot Usage (%) 99 | . 93 100 100 100 99 100 Engine 7 | . 14 14 14 14 . . Core 6 | . . . . . 13 14 Treads 11 | . 14 14 14 14 11 . Wheel 11 | . 14 14 14 14 11 . Flight 4 | . . . . . 5 28 Device 14 | . 12 14 14 14 14 22 Protection 12 | . 3 14 14 14 14 5 Ballistic Gun 26 | . 28 28 28 28 28 7 Impact Weapon 1 | . . . . . . 21 Naked Turns . | . . . . . . . Heaviest Build 15 | 6 10 10 10 10 14 15 Greatest Support 24 | 10 10 10 10 10 24 24 Greatest Overweight (x) 1 | . . . . . 1 . Average Overweight (x) . | . . . . . . . Largest Inventory Capacity . | . . . . . . . Average Capacity . | . . . . . . . Most Carried . | . . . . . . . Average Carried . | . . . . . . . Final Capacity . | . . . . . . . Final Carried . | . . . . . . . Class Distribution -------------------- 100% | Mutant Dominant Class ---------------- Mutant | -10/Materials Mutant | -10/Mines Mutant | -10/Exiles Mutant | -9/Mines Mutant | -8/Materials Mutant | -7/Factory Resources | -11 -10 -10 -10 -9 -8 -7 ----------- Run | Scr Mat Min Exi Min Mat Fac Matter Collected 596 | 250 . 94 . 86 166 . Remotely . | . . . . . . . Salvage Created 602 | . . 49 . 82 471 . Parts 36 | . . 3 . 9 24 . Haulers Intercepted 2 | . . . . . 2 . Recyclers Shooed . | . . . . . . . Parts Field Recycled . | . . . . . . . Retrieved Matter . | . . . . . . . Parts Self-Destructed . | . . . . . . . Prevented . | . . . . . . . Kills | -11 -10 -10 -10 -9 -8 -7 ------- Run | Scr Mat Min Exi Min Mat Fac Combat Hostiles Destroyed 13 | . . . 1 6 6 . Guns 13 | . . . 1 6 6 . Classes Destroyed 7 | . . 1 1 1 4 . Worker 2 | . . 2 . . . . Hauler 2 | . . . . . 2 . Swarmer 6 | . . . . 6 . . Grunt 2 | . . . . . 2 . Brawler 1 | . . . . . 1 . Sentry 3 | . . . . . 3 . Assembled 1 | . . . 1 . . . Best Kill Streak 4 | . . 2 1 4 3 . Combat Bots Only 4 | . . . 1 4 3 . Max Kills in Single Turn 1 | . . 1 1 1 1 . Gunslinging . | . . . . . . . Exploded . | . . . . . . . Melee . | . . . . . . . Uniques/NPCs Destroyed . | . . . . . . . Combat | -11 -10 -10 -10 -9 -8 -7 -------- Run | Scr Mat Min Exi Min Mat Fac Damage Taken 1401 | . . 392 272 229 282 226 Core 1142 | . . 343 211 180 225 183 Absorbed by Shields . | . . . . . . . Redirected to Core 889 | . . 201 211 148 181 148 Core Remaining (%) 47 | 100 . . . 27 15 . Volleys Fired 65 | . 1 15 2 17 30 . Largest 2 | . 2 2 2 2 2 . Hottest 40 | . 40 40 40 40 40 . Shots Fired 130 | . 2 30 4 34 60 . Gun 130 | . 2 30 4 34 60 . Cannon . | . . . . . . . Launcher . | . . . . . . . Special . | . . . . . . . Kinetic 130 | . 2 30 4 34 60 . Thermal . | . . . . . . . Explosive . | . . . . . . . Electromagnetic . | . . . . . . . Robot Hit Streak 15 | . 2 7 3 6 15 . Robot Miss Streak 5 | . . 1 1 5 3 . Penetration Max . | . . . . . . . Secondary Targets . | . . . . . . . Shots Hit Robots 92 | . 2 22 3 18 41 6 Core Hits 32 | . 1 4 1 6 20 . Critical Hits 2 | . . 2 . . . . Critical Kills . | . . . . . . . Critical Parts Destroyed . | . . . . . . . Melee Attacks 9 | . . . . . . 9 Impact 9 | . . . . . . 9 Slashing . | . . . . . . . Piercing . | . . . . . . . Sneak Attacks . | . . . . . . . Combat Hostiles . | . . . . . . . Follow-up Attacks 1 | . . . . . . 1 Damage Inflicted 993 | . 21 268 8 153 425 118 Guns 875 | . 21 268 8 153 425 . Cannons . | . . . . . . . Explosions . | . . . . . . . Melee 118 | . . . . . . 118 Ramming . | . . . . . . . Kinetic 875 | . 21 268 8 153 425 . Thermal . | . . . . . . . Explosive . | . . . . . . . Electromagnetic . | . . . . . . . Impact 118 | . . . . . . 118 Slashing . | . . . . . . . Piercing . | . . . . . . . Highest Corruption . | . . . . . . . Average Corruption . | . . . . . . . Corruption Purged . | . . . . . . . Overload Shots . | . . . . . . . Overflow Damage . | . . . . . . . Projectiles . | . . . . . . . Explosions . | . . . . . . . Melee . | . . . . . . . Knockbacks . | . . . . . . . Impact . | . . . . . . . Kinetic . | . . . . . . . Secondary . | . . . . . . . Self-Inflicted Damage . | . . . . . . . Shots . | . . . . . . . Rammed . | . . . . . . . Targets Rammed . | . . . . . . . Kicked . | . . . . . . . Crushed . | . . . . . . . Highest Temperature 7 | . . . . . 7 4 Average Temperature 3 | . . . . . 4 3 Received Heat Transfer 201 | . . . . . 117 84 Siege Activations . | . . . . . . . Robots Corrupted . | . . . . . . . Combat Hostiles . | . . . . . . . Parts Fried . | . . . . . . . Impact Corruptions . | . . . . . . . Robots Melted . | . . . . . . . Combat Hostiles . | . . . . . . . Parts Melted . | . . . . . . . Heat Transferred . | . . . . . . . Parts Sabotaged . | . . . . . . . Parts Stolen . | . . . . . . . Parts Stripped . | . . . . . . . Power Chain Reactions . | . . . . . . . Missiles Intercepted . | . . . . . . . Alert | -11 -10 -10 -10 -9 -8 -7 ------- Run | Scr Mat Min Exi Min Mat Fac Peak Influence 333 | . 26 19 . 218 333 82 Average Influence 120 | . 9 16 . 128 185 71 Maximum Alert Level 1 | . . . . 1 1 . Low Security (%) 67 | 100 100 100 . 48 58 100 Level 1 32 | . . . . 51 41 . Level 2 . | . . . . . . . Level 3 . | . . . . . . . Level 4 . | . . . . . . . Level 5 . | . . . . . . . High Security . | . . . . . . . Max Security . | . . . . . . . Squads Dispatched 3 | . 2 . . . 1 . Investigation . | . . . . . . . Extermination . | . . . . . . . Reinforcement 3 | . 2 . . . 1 . Assault . | . . . . . . . Garrison . | . . . . . . . Intercept . | . . . . . . . Construction Impeded . | . . . . . . . Haulers Reinforced . | . . . . . . . Stealth | -11 -10 -10 -10 -9 -8 -7 --------- Run | Scr Mat Min Exi Min Mat Fac Distress Signals 1 | . . . . 1 . . Communications Jammed . | . . . . . . . Distress Signals . | . . . . . . . Times Spotted 35 | . . 1 4 15 14 1 Peak Tracking Total 9 | . 1 1 9 6 4 1 Tactical Retreats 1 | . . . 1 . . . Traps | -11 -10 -10 -10 -9 -8 -7 ------- Run | Scr Mat Min Exi Min Mat Fac Traps Triggered . | . . . . . . . Indirectly . | . . . . . . . Trap Hack Attempts . | . . . . . . . Triggered . | . . . . . . . Disarmed . | . . . . . . . Reprogrammed . | . . . . . . . Reused . | . . . . . . . Traps Extracted . | . . . . . . . Installed . | . . . . . . . Triggered . | . . . . . . . Machines | -11 -10 -10 -10 -9 -8 -7 ---------- Run | Scr Mat Min Exi Min Mat Fac Machines Disabled . | . . . . . . . Max in Single Turn . | . . . . . . . Machines Sabotaged . | . . . . . . . Garrisons Compromised . | . . . . . . . Overloaded Fab Kills . | . . . . . . . Fab Network Shutdowns . | . . . . . . . Hacking | -11 -10 -10 -10 -9 -8 -7 --------- Run | Scr Mat Min Exi Min Mat Fac Machines Accessed 2 | . 2 . . . . . Terminals 2 | . 2 . . . . . Fabricators . | . . . . . . . Repair Stations . | . . . . . . . Recycling Units . | . . . . . . . Scanalyzers . | . . . . . . . Garrison Access . | . . . . . . . Total Hacks 8 | . 8 . . . . . Successful 5 | . 5 . . . . . Failed 3 | . 3 . . . . . Catastrophic . | . . . . . . . Database Lockouts . | . . . . . . . Manual 3 | . 3 . . . . . Terminals 8 | . 8 . . . . . Fabricators . | . . . . . . . Repair Stations . | . . . . . . . Recycling Units . | . . . . . . . Scanalyzers . | . . . . . . . Garrison Access . | . . . . . . . Terminal Hacks 3 | . 3 . . . . . Record 2 | . 2 . . . . . Security Status 1 | . 1 . . . . . Fabricator Hacks . | . . . . . . . Repair Station Hacks . | . . . . . . . Recycling Unit Hacks . | . . . . . . . Scanalyzer . | . . . . . . . Garrison Access Hacks . | . . . . . . . Unauthorized Hacks 5 | . 5 . . . . . Terminals 2 | . 2 . . . . . Botnet 2 | . 2 . . . . . Fabricators . | . . . . . . . Repair Stations . | . . . . . . . Recycling Units . | . . . . . . . Scanalyzers . | . . . . . . . Garrison Access . | . . . . . . . Data Cores Recovered . | . . . . . . . Used . | . . . . . . . Hacking Detections 2 | . 2 . . . . . Full Trace Events . | . . . . . . . Feedback Events . | . . . . . . . Feedback Blocked . | . . . . . . . Robot Schematics Acquired . | . . . . . . . Robots Built . | . . . . . . . Matter . | . . . . . . . Time . | . . . . . . . Total Robot Build Rating . | . . . . . . . Part Schematics Acquired . | . . . . . . . Parts Built . | . . . . . . . Matter . | . . . . . . . Time . | . . . . . . . Total Part Build Rating . | . . . . . . . Parts Repaired . | . . . . . . . Time . | . . . . . . . Parts Recycled . | . . . . . . . Recycled Matter . | . . . . . . . Retrieved Matter . | . . . . . . . Retrieved Components . | . . . . . . . Parts Scanalyzed . | . . . . . . . Part Schematics Acquired . | . . . . . . . Parts Damaged . | . . . . . . . Bothacking | -11 -10 -10 -10 -9 -8 -7 ------------ Run | Scr Mat Min Exi Min Mat Fac Used RIF Installer . | . . . . . . . Robots Hacked . | . . . . . . . Non-combat . | . . . . . . . Combat . | . . . . . . . Robot Hacks Applied . | . . . . . . . Relay Couplers Released . | . . . . . . . Robots Rewired . | . . . . . . . Allies Hacked . | . . . . . . . Hacks Repelled . | . . . . . . . Allies | -11 -10 -10 -10 -9 -8 -7 -------- Run | Scr Mat Min Exi Min Mat Fac Total Allies 4 | . . . . 4 . . Largest Group 4 | . . . . 4 . . Highest-Rated Group 71 | . . . . 71 . . Highest-Rated Ally 31 | . . . . 31 . . Total Orders . | . . . . . . . Ally Attacks 13 | . . . . 13 . . Total Damage 86 | . . . . 86 . . Kills 3 | . . . . 3 . . Allies Corrupted . | . . . . . . . Allies Melted . | . . . . . . . Intel | -11 -10 -10 -10 -9 -8 -7 ------- Run | Scr Mat Min Exi Min Mat Fac Robot Analysis Total . | . . . . . . . Derelict Logs Recovered 1 | . . . . 1 . . Drone Launches . | . . . . . . . Drone Recoveries . | . . . . . . . Exploration | -11 -10 -10 -10 -9 -8 -7 ------------- Run | Scr Mat Min Exi Min Mat Fac Turns Passed 1126 | 30 120 93 37 345 420 81 Spaces Moved 962 | 30 133 39 40 322 263 135 Core 3 | 3 . . . . . . Treads 85 | . . . . . 85 . Legs . | . . . . . . . Wheels 639 | 27 133 39 40 322 78 . Hover . | . . . . . . . Flight 235 | . . . . . 100 135 Fastest Speed 34 | 50 80 80 80 80 37 34 Average Speed 77 | 77 80 80 80 80 92 36 Slowest Speed 160 | 80 80 80 80 80 160 37 Overloaded Moves . | . . . . . . . Propulsion Burnouts . | . . . . . . . Robots Hopped 1 | . . . . . 1 . Cave-ins Triggered . | . . . . . . . Exploration Rate (%) 21 | 3 32 10 9 72 23 4 Regions Visited 6 Branch Regions 3 Pre-discovered Areas 1 | . . . . 1 . . Known Exits Taken . | . . . . . . . Unknown Exits Taken 6 | 1 1 1 1 1 1 . Scrap Searched 1 | . . . . 1 . . Spaces Dug . | . . . . . . . Terrain Destroyed . | . . . . . . . Melee . | . . . . . . . Projectile . | . . . . . . . AOE . | . . . . . . . Actions | -11 -10 -10 -10 -9 -8 -7 --------- Run | Scr Mat Min Exi Min Mat Fac Total 1217 | 34 143 73 41 379 385 162 Wait 147 | . 6 20 . 35 79 7 Move 954 | 29 132 38 39 321 260 135 Hop 1 | . . . . . 1 . Pick Up . | . . . . . . . Fast Attach 17 | 5 3 . . . 3 6 Attach . | . . . . . . . Detach . | . . . . . . . Swap 3 | . . . . 1 2 . Drop 13 | . 1 . . 1 5 6 Fire 65 | . 1 15 2 17 30 . Melee 8 | . . . . . . 8 Ram . | . . . . . . . Kick . | . . . . . . . Crush . | . . . . . . . Escape Stasis . | . . . . . . . Rewire . | . . . . . . . Trap . | . . . . . . . Miscellaneous 9 | . . . . 4 5 . Route ------- -11/Scrapyard -10/Materials -10/Mines (discovered 2 exits: [*Mat] / [*Exi]) -10/Exiles -9/Mines -8/Materials -7/Factory History --------- Turn | Location | Event 1 | -11/Scrapyard | Upgraded with Propulsion slot (x1) 1 | -11/Scrapyard | Upgraded with Utility slot (x1) 1 | -11/Scrapyard | Upgraded with Weapon slot (x1) 12 | -11/Scrapyard | Discovered new exit (range 15) 31 | -11/Scrapyard | Entered Materials 36 | -10/Materials | Discovered new exit (range 16) 99 | -10/Materials | Met 8R-AWN 151 | -10/Materials | Entered Mines 152 | -10/Mines | Followed 8R-AWN into the Mines 153 | -10/Mines | Met a Derelict bent on vengeance 178 | -10/Mines | Discovered new exit (range 9) 182 | -10/Mines | Attacked by 8R-AWN 241 | -10/Mines | Discovered new exit (range 5) 244 | -10/Mines | Entered Exiles 244 | -10/Exiles | Attacked by the Exiles 264 | -10/Exiles | Core integrity fell below 50% 271 | -10/Exiles | Discovered new exit (range 14) 281 | -10/Exiles | Entered Mines 285 | -9/Mines | Assisted by bots powering up and referring to "LRC-V3" 293 | -9/Mines | Learned location of Zion (-6) 307 | -9/Mines | Received a Mining Laser from a helpful Derelict 312 | -9/Mines | Build established: Mutant 381 | -9/Mines | Reached level 2 593 | -9/Mines | Assembled infested the area 619 | -9/Mines | Discovered new exit (range 10) 626 | -9/Mines | Entered Materials 627 | -8/Materials | Core integrity fell below 50% 628 | -8/Materials | Reached level 3 764 | -8/Materials | Core integrity fell below 20% 1006 | -8/Materials | Reached level 4 1040 | -8/Materials | Discovered new exit (range 16) 1046 | -8/Materials | Entered Factory 1047 | -7/Factory | Core integrity fell below 50% 1047 | -7/Factory | Core integrity fell below 20% 1048 | -7/Factory | Reached level 5 1127 | -7/Factory | Destroyed by Y-54 Guardian via exploding Fusion Modulator Last Messages --------------- 01051_ Acquired Prototype Flight Unit. 01051_ Identified Imp. VTOL Module. 01053_ Dropped Imp. VTOL Module. 01053_ Acquired Xenon Bombardment Thruster. 01064_ Dropped Assault Rifle. 01064_ Acquired Flail. 01066_ Dropped Lgt. Assault Rifle. 01067_ Acquired Flail. 01069_ Dropped Heat Sink. 01069_ Acquired Microactuators. 01071_ Dropped Imp. Light Armor Plating. 01072_ Acquired Microactuators. 01076_ K-01 Serf cleans the Fusion Modulator. 01084_ R-06 Scavenger collects Heat Sink. 01088_ R-06 Scavenger collects Imp. Light Armor Plating. 01093_ R-06 Scavenger collects Assault Rifle. 01094_ K-01 Serf pushes P-60 Hacker. 01097_ K-01 Serf pushes I-36 Angel. 01126_ Flail follow-up attack on Y-54 Guardian. 01127_ Fusion Modulator explodes. Map ----- +----------------------------------------------------+ | #"Y """ #???????????????????? | | #""" = ?????????????????? | | #### """ == ????????????????? | | ???# """ = ????????????????? | | ???# """ """ ?????????????????? | | ???# """??????????????????? | | ???# """ """ ####### ""???????????????????? | | ???# """ """ #?????? ???????????????????? | | ???# """ """ #??????? ???????????????????? | | ???# ^ #?????????????????????????????? | | ???# """ """ #?????????????????????????????? | | ???# """ """ #?????????????????????????????? | | ???# """ """ #?????????????????????????????? | | ???# #?????????????????????????????? | | ???# """ """ #?????????????????????????????? | | ?? """ """ #?????????????????????????????? | | """ """ #?????????????????????????????? | | #?????????????????????????????? | | """ """ #?????????????????????????????? | | """ """ #?????????????????????????????? | | """ """ #?????????????????????????????? | | ########??????????????????????? | | """ """ #??????????????????????? | | """ """ ##?????????????????????? | | """ """ # ############?????????? | | ! # @ #?????????? | | #Y """" +?????????? | | ######+########### # """" ??????????? | | ?????????????????# # """" ??????????? | | ?????????????????# # """" ??????????? | | ???????????????### # """" ???????????? | | ?????????????+ + """" ???????????? | | ?????????????##### # """"????????????? | | ?????????????????# # #?????????? | | ?????????????????# # !!! #?????????? | | ?????????????????# # !!! #?????????? | | ???????????????? # !!! #?????????? | | ??????????????? ##############?????????? | | ?????????????? """"" #??????????????????????? | | ?????????????# "" F" #??????????????????????? | | ?????????????# "" "" ??????????????????????? | | ?????????????#??? ? ???????????????????????? | | ???????????????????? ???????????????????????? | | ???????????????????? ???????????????????????? | | ???????????????????? ???????????????????????? | | ????????????????????##+???????????????????????? | | ??????????????????????????????????????????????? | | ??????????????????????????????????????????????? | | ??????????????????????????????????????????????? | | ??????????????????????????????????????????????? | +----------------------------------------------------+ Best States ------------- Heat Dissipation 35 Energy Generation 14 Energy Capacity 240 Matter Stores 300 Matter Capacity 450 Sight Range 16 Terrain Scan Density 10 Armor Coverage 150 Resistance: KI 20 Resistance: TH 20 Melee Speed Boost 40 Evasion (%) 62 Recoil Reduction 1 Item Schematics ----------------- None Robot Schematics ------------------ None Fabricated ------------ Nothing Alien Tech Used ----------------- None Achievements -------------- None Challenges ------------ None RPGLIKE | -11 -10 -10 -10 -9 -8 -7 --------- Run | Scr Mat Min Exi Min Mat Fac Levels Raised 4 | . . . . 1 2 1 XP Earned 9221 | 3000 30 500 200 1621 2370 1500 XP Spent 8300 | 3000 . . . . 2900 2400 Upgrades 23 | 14 . . . . 6 3 Propulsion Slot 1 | 1 . . . . . . Utility Slot 1 | 1 . . . . . . Weapon Slot 1 | 1 . . . . . . Core Integrity 6 | 6 . . . . . . Mass Support 2 | . . . . . 2 . KI Resistance % 4 | 2 . . . . 2 . TH Resistance % 4 | 2 . . . . 2 . KI Damage % 4 | 1 . . . . . 3 Protomatter Created 94 | . . . 11 23 60 . Integrity Restored 198 | . . . . 78 120 . Core 198 | . . . . 78 120 . Protomatter Decayed 134 | . 80 . . 34 20 . Game ------ Seed PortableInsulationKit Manual? 0 Play Time 00:24:10 Cumulative 283.2 hours Start 2019.12.19 @ 08:26:27 End 2019.12.19 @ 08:51:07 Sessions 1 Manual Loads 0 Difficulty Rogue Special Mode Winter2019/RPGLIKE Game No. 156 Rogue 156 Adventurer 0 Explorer 0 Win Type - Total 4 Types 4/0/0/0/0/0/0 Lore% 70 Gallery% 76 Achievement% 53 Wizard Run 0 Options --------- ASCII 0 Keyboard 1 Movement Numpad Keybinds 1 Fullscreen 1 Font 18/SmallcapsGlow Map View 76x50 Tactical HUD 1 Map Filters NONE Filters NONE Steam 1 RUN: 083670bd-35d0-455f-855f-79d5dff64f09